bitfinex-derivatives/quotes_SOLF0:USTF0_20250705
["timestamp","ask_amount","ask_price","bid_price","bid_amount"]
[1751722805581,6.7602,147.89,147.87,2.97704273]
[1751722807474,6.7606,147.88,147.86,2.97704273]
[1751722807872,6.7606,147.88,147.85,55.97894273]
[1751722808281,6.7611,147.87,147.85,49.21704273]
[1751722808783,6.7611,147.87,147.85,46.24]
[1751722809086,6.7611,147.87,147.85,49.21704273]
[1751722809379,6.7608,147.88,147.85,55.97904273]
[1751722809680,6.7608,147.88,147.86,2.97704273]
[1751722819993,2.1931,147.92,147.87,2.97704273]
[1751722819994,6.7604,147.89,147.87,2.97704273]
[1751722823391,6.7606,147.88,147.87,2.97704273]
[1751722824186,6.7613,147.87,147.85,244.17704273]
[1751722824694,6.7613,147.87,147.85,49.21704273]
[1751722824887,6.7615,147.86,147.85,49.21704273]
[1751722827391,6.7615,147.86,147.85,46.24]
[1751722829988,6.7613,147.87,147.85,46.24]
[1751722830395,6.7613,147.87,147.85,49.21704273]
[1751722831999,6.7613,147.87,147.86,2.97704273]
[1751722833299,6.7613,147.87,147.85,250.93894273]
[1751722835798,6.7613,147.87,147.85,247.9619]
[1751722835997,6.7613,147.87,147.85,250.93894273]
[1751722836498,6.7613,147.87,147.86,2.97704273]
[1751722837298,6.7613,147.87,147.85,250.93894273]
[1751722839297,4.7794,147.9,147.85,244.17704273]
[1751722839492,10.49935002,147.89,147.87,2.97704273]
[1751722839798,2.1931,147.92,147.88,197.93704273]
[1751722840100,17.25918859,147.91,147.89,194.96]
[1751722840301,10.49988859,147.9,147.89,194.96]
[1751722841702,17.25958859,147.9,147.89,194.96]
[1751722842404,11.53705788,147.9,147.89,194.96]
[1751722843510,17.2176631,147.9,147.89,194.96]
[1751722843805,10.4579631,147.9,147.89,197.93704273]
[1751722844018,4.77735788,147.9,147.89,197.93704273]
[1751722844309,2.18831274,147.95,147.89,197.93704273]
[1751722844505,4.81555343,147.94,147.93,2.97704273]
[1751722844911,4.81555343,147.94,147.93,9.73534273]
[1751722845307,4.81555343,147.94,147.92,194.96]
[1751722845308,6.66002996,147.98,147.92,194.96]
[1751722845508,10.50317384,147.97,147.96,2.97704273]
[1751722846114,17.25967384,147.97,147.96,2.97704273]
[1751722846314,10.50317384,147.97,147.95,194.96]
[1751722846514,4.8131876,147.96,147.95,194.96]
[1751722846816,10.50036317,147.96,147.95,194.96]
[1751722847615,17.25736317,147.96,147.94,2.97704273]
[1751722847817,17.25736317,147.96,147.93,6.7583]
[1751722847818,6.757,147.96,147.93,6.7583]
[1751722848018,4.82587675,147.95,147.93,6.7583]
[1751722848213,6.7567,147.97,147.93,6.7583]
[1751722848416,4.82416576,147.96,147.94,4.64814088]
[1751722848716,57.14014985,148.02,147.94,4.64814088]
[1751722848918,4.64814088,148.0,147.93,6.7581]
[1751722849112,10.58949387,147.99,147.93,6.7581]
[1751722849316,6.757,147.96,147.93,6.7581]
[1751722853419,6.757,147.96,147.94,6.7579]
[1751722853724,6.7567,147.97,147.94,6.7579]
[1751722854425,6.757,147.96,147.93,6.7582]
[1751722854628,4.64814088,147.98,147.92,194.92]
[1751722854927,10.59919336,147.97,147.92,194.92]
[1751722855117,6.7577,147.95,147.92,201.6786]
[1751722855321,4.64814088,147.98,147.92,194.92]
[1751722855524,4.64814088,147.96,147.92,194.92]
[1751722855726,4.8853973,147.95,147.92,194.92]
[1751722855925,6.7577,147.95,147.92,201.6788]
[1751722856729,6.7577,147.95,147.92,6.7588]
[1751722858128,6.7579,147.94,147.91,6.7591]
[1751722860028,4.64814088,147.94,147.9,46.22]
[1751722860631,6.7585,147.93,147.9,46.22]
[1751722862635,6.7585,147.93,147.9,52.9796]
[1751722872240,11.61174088,147.96,147.9,52.9797]
[1751722872539,10.50656316,147.95,147.9,46.22]
[1751722872739,10.50656316,147.94,147.9,46.22]
[1751722872935,11.60583554,147.93,147.9,52.9796]
[1751722873135,6.7586,147.93,147.9,52.9796]
[1751722873337,6.7581,147.94,147.91,6.759]
[1751722873533,4.572,147.96,147.9,50.86814088]
[1751722873841,7.07564088,148.0,147.92,4.64814088]
[1751722874035,6.7572,147.96,147.93,6.7581]
[1751722874639,6.7572,147.96,147.93,201.6181]
[1751722875443,6.7568,147.97,147.94,6.7578]
[1751722875641,4.84978496,147.96,147.94,11.40594088]
[1751722875945,6.7568,147.97,147.94,11.40594088]
[1751722881349,4.88575696,147.96,147.94,6.7578]
[1751722881542,6.7568,147.97,147.94,6.7578]
[1751722881742,4.88575696,147.96,147.94,6.7578]
[1751722881946,6.7568,147.97,147.94,6.7578]
[1751722882146,4.88575696,147.96,147.94,6.7578]
[1751722882342,6.7568,147.97,147.94,6.7578]
[1751722882646,4.88664051,147.96,147.94,6.7578]
[1751722882853,6.7568,147.97,147.94,6.7578]
[1751722883052,4.88663946,147.96,147.94,6.7578]
[1751722883252,6.7568,147.97,147.94,6.7578]
[1751722883454,4.88769852,147.96,147.94,6.7578]
[1751722883654,6.7568,147.97,147.94,6.7578]
[1751722883950,4.88769852,147.96,147.94,6.7578]
[1751722884144,6.7568,147.97,147.94,6.7578]
[1751722884351,4.88895678,147.96,147.94,6.7578]
[1751722884549,6.7568,147.97,147.94,6.7578]
[1751722884844,4.88895678,147.96,147.94,6.7578]
[1751722885049,6.7568,147.97,147.94,6.7578]
[1751722885252,4.88893392,147.96,147.94,6.7578]
[1751722885654,6.7568,147.97,147.94,6.7578]
[1751722888256,4.90205574,147.96,147.94,6.7578]
[1751722888555,6.7568,147.97,147.94,6.7578]
[1751722888751,4.90298397,147.96,147.94,6.7578]
[1751722888958,6.7568,147.97,147.94,6.7578]
[1751722889149,4.90298101,147.96,147.94,6.7578]
[1751722889346,6.7568,147.97,147.94,6.7578]
[1751722889555,4.90304696,147.96,147.94,6.7578]
[1751722889854,6.7568,147.97,147.95,2.9746124]
[1751722890053,4.90304696,147.96,147.95,2.9746124]
[1751722891358,4.90304696,147.96,147.94,9.7324124]
[1751722891655,6.7568,147.97,147.94,9.7324124]
[1751722891848,4.90261315,147.96,147.94,9.7324124]
[1751722892152,6.7568,147.97,147.94,9.7324124]
[1751722892353,4.90273673,147.96,147.94,9.7324124]
[1751722892555,6.7568,147.97,147.94,9.7324124]
[1751722892754,4.90273673,147.96,147.94,9.7324124]
[1751722892949,6.7568,147.97,147.94,9.7324124]
[1751722893150,4.90273673,147.96,147.94,9.7324124]
[1751722893351,6.7568,147.97,147.94,9.7324124]
[1751722893546,4.90258462,147.96,147.94,9.7324124]
[1751722893758,6.7568,147.97,147.94,9.7324124]
[1751722894060,4.90258462,147.96,147.94,9.7324124]
[1751722894255,6.7568,147.97,147.94,9.7324124]
[1751722894459,7.87737307,147.96,147.93,6.7582]
[1751722894759,4.90276067,147.95,147.93,6.7582]
[1751722894962,4.90276067,147.94,147.93,6.7582]
[1751722895758,9.7318124,147.96,147.93,6.7582]
[1751722895957,4.90261688,147.95,147.93,6.7582]
[1751722896158,4.90261688,147.94,147.93,6.7582]
[1751722897263,4.90280992,147.94,147.93,6.7582]
[1751722899064,9.7318124,147.96,147.93,6.7582]
[1751722899360,4.89269629,147.95,147.93,6.7582]
[1751722899563,9.7318124,147.96,147.93,6.7582]
[1751722899760,4.89269621,147.95,147.93,6.7582]
[1751722899961,9.7318124,147.96,147.93,6.7582]
[1751722900363,4.89265531,147.95,147.93,6.7582]
[1751722900664,9.7318124,147.96,147.93,6.7582]
[1751722900864,4.89265531,147.95,147.93,6.7582]
[1751722901164,9.7318124,147.96,147.93,6.7582]
[1751722901464,4.89266496,147.95,147.93,6.7582]
[1751722901666,9.7318124,147.96,147.93,6.7582]
[1751722901962,4.89266496,147.95,147.93,6.7582]
[1751722902159,6.7572,147.96,147.93,6.7582]
[1751722902361,4.89268476,147.95,147.93,6.7582]
[1751722902559,6.7572,147.96,147.93,6.7582]
[1751722902763,4.89268476,147.95,147.93,6.7582]
[1751722902964,6.7572,147.96,147.93,6.7582]
[1751722903258,4.89268476,147.95,147.93,6.7582]
[1751722903462,6.7572,147.96,147.93,6.7582]
[1751722903663,4.8927135,147.95,147.93,6.7582]
[1751722903961,6.7572,147.96,147.93,6.7582]
[1751722904163,4.8927135,147.95,147.93,6.7582]
[1751722904362,6.7572,147.96,147.93,6.7582]
[1751722904562,4.89275122,147.95,147.93,6.7582]
[1751722904762,6.7572,147.96,147.93,6.7582]
[1751722904964,4.89275122,147.95,147.93,6.7582]
[1751722905162,6.7572,147.96,147.93,6.7582]
[1751722905462,4.89293021,147.95,147.93,6.7582]
[1751722905763,6.7572,147.96,147.93,6.7582]
[1751722905953,4.89293021,147.95,147.93,6.7582]
[1751722906155,6.7572,147.96,147.93,6.7582]
[1751722906356,4.89310368,147.95,147.93,6.7582]
[1751722906554,6.7572,147.96,147.93,6.7582]
[1751722906766,4.89338196,147.95,147.93,6.7582]
[1751722906966,6.7572,147.96,147.93,6.7582]
[1751722907265,4.89338196,147.95,147.93,6.7582]
[1751722907461,4.89338196,147.94,147.93,6.7582]
[1751722911472,4.89338196,147.94,147.93,2.97545349]
[1751722911769,4.89338196,147.94,147.93,2.97488658]
[1751722912570,4.89338196,147.94,147.93,9.73328658]
[1751722918185,6.7561,147.98,147.95,6.7572]
[1751722918379,7.89355199,147.97,147.92,194.78]
[1751722918580,2.4275,148.0,147.92,194.78]
[1751722918581,8.69950897,148.0,147.92,194.78]
[1751722918782,19.23736163,147.99,147.96,6.757]
[1751722919085,5.70774062,147.98,147.96,6.757]
[1751722919281,5.70774062,147.97,147.96,6.757]
[1751722919481,5.70774062,147.97,147.96,9.73188658]
[1751722919884,6.27200897,148.0,147.97,6.7563]
[1751722920084,6.77287818,147.99,147.97,6.7563]
[1751722920284,6.7555,148.0,147.97,6.7563]
[1751722920484,6.77204494,147.99,147.97,6.7563]
[1751722920684,13.02750897,148.0,147.97,6.7563]
[1751722920884,6.79640115,147.99,147.97,6.7563]
[1751722921085,6.7555,148.0,147.97,6.7563]
[1751722921285,6.7555,148.0,147.99,2.97488658]
[1751722921483,13.55031841,148.0,147.99,2.97488658]
[1751722922387,13.55031841,148.0,147.98,2.97488658]
[1751722922587,2.18768862,147.99,147.98,2.97488658]
[1751722923788,6.7555,148.0,147.98,2.97488658]
[1751722930093,4.86144709,147.99,147.98,2.97488658]
[1751722930992,4.86144709,147.99,147.97,9.73118658]
[1751722931192,6.7555,148.0,147.97,9.73118658]
[1751722931392,4.86022428,147.99,147.97,9.73118658]
[1751722931691,6.7555,148.0,147.97,9.73118658]
[1751722931893,4.86021555,147.99,147.97,9.73118658]
[1751722932191,6.7555,148.0,147.97,9.73118658]
[1751722932387,4.85963079,147.99,147.97,9.73118658]
[1751722932582,6.7555,148.0,147.97,9.73118658]
[1751722932786,4.85963079,147.99,147.97,9.73118658]
[1751722932988,6.7555,148.0,147.97,9.73118658]
[1751722933183,4.85963079,147.99,147.97,9.73118658]
[1751722933387,6.7555,148.0,147.97,9.73118658]
[1751722933590,4.85912184,147.99,147.97,9.73118658]
[1751722933788,6.7555,148.0,147.97,9.73118658]
[1751722933989,4.85912184,147.99,147.97,9.73118658]
[1751722934190,6.7555,148.0,147.97,9.73118658]
[1751722934689,4.87904632,147.99,147.97,9.73118658]
[1751722934891,6.7555,148.0,147.97,9.73118658]
[1751722935194,4.87904632,147.99,147.97,9.73118658]
[1751722935491,6.7555,148.0,147.97,9.73118658]
[1751722935687,4.8784819,147.99,147.97,9.73118658]
[1751722935891,6.7555,148.0,147.97,9.73118658]
[1751722936087,4.8784819,147.99,147.97,9.73118658]
[1751722936283,2.97488658,148.0,147.96,2.97488658]
[1751722936493,11.63366798,147.99,147.96,2.97488658]
[1751722936687,9.73058658,147.99,147.95,49.15488658]
[1751722936892,9.73058658,147.99,147.96,6.7569]
[1751722937095,2.97488658,147.98,147.95,49.15488658]
[1751722937691,6.7557,147.99,147.95,49.15488658]
[1751722937692,9.73058658,147.99,147.95,49.15488658]
[1751722937892,9.73058658,147.99,147.96,6.7569]
[1751722938095,9.73058658,147.99,147.95,49.15488658]
[1751722938596,4.86725897,147.98,147.95,49.15488658]
[1751722938795,9.73058658,147.99,147.95,49.15488658]
[1751722939090,4.86725897,147.98,147.95,49.15488658]
[1751722939293,9.73058658,147.99,147.95,49.15488658]
[1751722939495,4.86704929,147.98,147.95,49.15488658]
[1751722939683,9.73058658,147.99,147.97,6.7564]
[1751722939887,4.86704929,147.98,147.97,6.7564]
[1751722942093,4.86704929,147.98,147.95,49.15488658]
[1751722942094,6.7565,147.97,147.95,52.9373]
[1751722942299,7.84179255,147.96,147.95,46.18]
[1751722942503,7.84179255,147.96,147.92,49.11488658]
[1751722942800,2.97488658,147.96,147.95,6.7574]
[1751722942993,7.84178881,147.96,147.95,6.7574]
[1751722943190,4.86690223,147.96,147.95,6.7574]
[1751722945397,7.84178881,147.96,147.95,6.7574]
[1751722945803,2.97488658,147.96,147.95,6.7574]
[1751722946198,7.84245892,147.96,147.95,6.7574]
[1751722948304,9.73158658,147.97,147.95,6.7574]
[1751722948501,4.86877806,147.96,147.95,6.7574]
[1751722950095,4.86877806,147.96,147.94,6.7577]
[1751722950296,6.757,147.96,147.94,6.7577]
[1751722952108,9.73168658,147.97,147.94,6.7577]
[1751722952308,4.83953253,147.96,147.94,6.7577]
[1751722952607,9.73168658,147.97,147.94,6.7577]
[1751722952810,4.83953253,147.96,147.94,6.7577]
[1751722953104,9.73168658,147.97,147.94,6.7577]
[1751722953305,4.82953312,147.96,147.94,6.7577]
[1751722953496,9.73168658,147.97,147.94,6.7577]
[1751722953697,4.82953312,147.96,147.94,6.7577]
[1751722953906,6.7568,147.97,147.94,6.7577]
[1751722954105,4.82953121,147.96,147.94,6.7577]
[1751722954308,6.7568,147.97,147.94,6.7577]
[1751722954511,11.58701616,147.96,147.94,6.7577]
[1751722954810,6.7572,147.96,147.94,6.7577]
[1751722955002,2.97488658,147.97,147.93,9.73298658]
[1751722955203,10.50111256,147.96,147.93,9.73298658]
[1751722955405,4.83004149,147.95,147.93,9.73298658]
[1751722955606,6.7572,147.96,147.93,9.73298658]
[1751722955908,4.82965792,147.95,147.93,9.73298658]
[1751722956107,6.7572,147.96,147.93,9.73298658]
[1751722956309,4.82981619,147.95,147.93,9.73298658]
[1751722956609,6.7572,147.96,147.93,9.73298658]
[1751722956806,4.82981619,147.95,147.93,9.73298658]
[1751722957109,6.7572,147.96,147.93,9.73298658]
[1751722957311,9.73158658,147.97,147.94,6.7578]
[1751722957499,4.83024629,147.96,147.94,6.7578]
[1751722957701,2.97488658,147.98,147.94,6.7578]
[1751722957899,17.25922742,147.97,147.94,9.73268658]
[1751722958102,4.83024821,147.96,147.94,9.73268658]
[1751722958303,6.7563,147.98,147.95,2.97488658]
[1751722958502,10.50336299,147.97,147.96,2.97488658]
[1751722958814,10.50336299,147.97,147.95,2.97488658]
[1751722959003,4.8308131,147.96,147.95,9.73188658]
[1751722959607,6.7563,147.98,147.95,9.73188658]
[1751722959908,10.50455985,147.97,147.96,6.757]
[1751722960102,4.83122765,147.97,147.96,9.73188658]
[1751722960312,4.58049399,148.0,147.96,2.97488658]
[1751722960514,6.7545,148.02,147.99,9.73008658]
[1751722960811,6.7545,148.02,148.01,2.97488658]
[1751722961012,19.19654036,148.02,148.01,2.97488658]
[1751722961213,14.61559937,148.02,148.01,2.97488658]
[1751722961913,14.61559937,148.02,147.99,11.3990943]
[1751722962213,5.67501358,148.01,147.99,11.3990943]
[1751722962412,6.7545,148.02,147.99,11.3990943]
[1751722962614,5.66539301,148.01,148.0,6.7552]
[1751722967316,6.7545,148.02,148.0,6.7552]
[1751722967917,6.7545,148.02,147.99,11.3992943]
[1751722973616,6.7545,148.02,147.97,46.12]
[1751722973617,17.77673842,148.05,147.97,46.12]
[1751722973821,4.6438943,148.03,147.97,46.12]
[1751722974022,10.52035284,148.02,147.97,46.12]
[1751722974224,6.7556,147.99,147.97,52.8765]
[1751722979331,6.7554,148.0,147.97,52.8765]
[1751722981729,6.7554,148.0,147.97,55.84994875]
[1751722986138,6.7556,147.99,147.97,52.8765]
[1751722986633,2.97344875,147.99,147.97,46.12]
[1751722987734,2.97469009,147.99,147.97,46.12]
[1751722988539,6.7561,147.98,147.97,46.12]
[1751722988942,2.97469009,148.01,147.97,46.12]
[1751722989137,10.48445682,148.0,147.97,46.12]
[1751722989335,6.7561,147.98,147.97,46.12]
[1751722989535,11.57239707,147.98,147.97,46.12]
[1751722989731,11.57239707,147.98,147.97,49.09469009]
[1751722990841,6.7561,147.98,147.97,49.09469009]
[1751722992246,6.7557,147.99,147.97,55.85119009]
[1751722992443,6.7557,147.99,147.98,2.97469009]
[1751722992640,2.97469009,148.0,147.85,16.574164]
[1751722992841,2.97469009,147.98,147.94,2.97469009]
[1751722993041,4.79752834,147.97,147.95,2.97469009]
[1751722993341,2.97469009,148.0,147.96,2.97469009]
[1751722993642,10.48790026,147.99,147.96,2.97469009]
[1751722993844,2.97469009,148.0,147.96,2.97469009]
[1751722994044,10.48775084,147.99,147.96,2.97469009]
[1751722994243,2.97469009,148.0,147.96,2.97469009]
[1751722994444,10.48829656,147.99,147.96,2.97469009]
[1751722994646,6.7566,147.97,147.96,2.97469009]
[1751722998751,6.78567413,148.01,147.96,2.97469009]
[1751722998941,13.44459199,148.0,147.96,2.97469009]
[1751722999143,10.4699019,147.99,147.96,2.97469009]
[1751722999339,6.7565,147.97,147.96,2.97469009]
[1751723003249,11.52660417,147.97,147.96,2.97469009]
[1751723004558,11.54717143,147.97,147.96,2.97469009]
[1751723006159,4.79067143,147.97,147.96,2.97469009]
[1751723008560,4.77967685,147.97,147.96,2.97469009]
[1751723009762,4.77967685,147.97,147.96,9.73169009]
[1751723009965,6.7554,148.0,147.96,2.97469009]
[1751723010157,6.7554,148.0,147.99,2.97469009]
[1751723010357,17.24312773,148.0,147.99,2.97469009]
[1751723018259,10.48772773,148.0,147.99,2.97469009]
[1751723020365,17.24292773,148.0,147.97,6.7563]
[1751723020666,10.52257455,147.99,147.98,2.97469009]
[1751723021271,17.27847455,147.99,147.98,2.97469009]
[1751723022767,17.27847455,147.99,147.97,2.97469009]
[1751723022968,6.7559,147.99,147.97,2.97469009]
[1751723025668,6.7559,147.99,147.98,2.97469009]
[1751723025871,17.30527097,147.99,147.97,2.97469009]
[1751723026067,6.7559,147.99,147.97,2.97469009]
[1751723027475,6.7559,147.99,147.97,9.73109009]
[1751723028374,6.7549,148.01,147.98,6.7561]
[1751723028573,10.54927819,148.0,147.98,9.73079009]
[1751723028867,10.54927819,147.99,147.98,9.72943506]
[1751723032376,4.81457338,147.99,147.98,9.72943506]
[1751723033672,4.81457338,147.99,147.98,2.97333506]
[1751723036277,6.29662456,148.03,147.98,2.97333506]
[1751723036477,17.37842103,148.02,147.98,2.97333506]
[1751723036781,10.53905769,148.01,147.98,2.97333506]
[1751723036983,10.53905769,148.0,147.97,2.97333506]
[1751723037177,4.80439296,147.99,147.97,2.97333506]
[1751723037377,2.97333506,148.02,147.97,2.97333506]
[1751723037577,10.5388747,148.01,147.97,2.97333506]
[1751723037879,10.5388747,148.0,147.97,2.97333506]
[1751723038080,4.80430067,147.99,147.97,2.97333506]
[1751723038379,2.97333506,148.02,147.97,2.97333506]
[1751723038680,10.53940801,148.01,147.97,2.97333506]
[1751723038980,10.53940801,148.0,147.98,2.97333506]
[1751723039278,4.804713,147.99,147.98,2.97333506]
[1751723042083,4.804713,147.99,147.98,2.97313996]
[1751723042575,6.30474642,148.03,147.98,2.97313996]
[1751723042773,17.35637834,148.02,148.01,2.97313996]
[1751723043375,12.7172112,148.02,148.01,2.97313996]
[1751723043577,10.53338545,148.02,148.01,2.97313996]
[1751723046483,4.80474097,148.02,148.01,2.97313996]
[1751723050690,4.6109,148.05,148.01,2.97313996]
[1751723050888,10.5822293,148.04,148.03,2.97313996]
[1751723056188,10.5822293,148.04,148.01,2.97313996]
[1751723056392,10.5822293,148.03,148.01,2.97313996]
[1751723056586,4.83327062,148.02,148.01,2.97313996]
[1751723058094,7.58403996,148.05,148.01,2.97313996]
[1751723058298,10.55240505,148.04,148.01,2.97313996]
[1751723058594,10.55240505,148.03,148.01,2.97313996]
[1751723058893,7.58403996,148.05,148.01,2.97313996]
[1751723059095,10.55809031,148.04,148.01,2.97313996]
[1751723059293,10.55809031,148.03,148.01,2.97313996]
[1751723059494,4.6109,148.05,148.01,2.97313996]
[1751723059700,10.55755922,148.04,148.01,2.97313996]
[1751723059888,10.55755922,148.03,148.01,2.97313996]
[1751723060088,4.6109,148.05,148.01,2.97313996]
[1751723060288,10.55647697,148.04,148.01,2.97313996]
[1751723060595,5.22753996,148.06,147.97,194.36]
[1751723060596,2.2544,148.06,148.03,2.97313996]
[1751723060783,4.81076559,148.05,148.04,2.97313996]
[1751723060990,10.55739068,148.05,148.04,2.97313996]
[1751723062190,4.81076559,148.05,148.04,2.97313996]
[1751723062591,4.683,148.08,148.04,2.97313996]
[1751723062792,4.683,148.08,148.07,2.97313996]
[1751723062998,15.23335437,148.08,148.07,2.97313996]
[1751723063692,15.23335437,148.08,148.06,2.97313996]
[1751723063891,10.55035437,148.07,148.04,4.64094911]
[1751723064090,4.80746605,148.06,148.04,4.64094911]
[1751723064290,4.683,148.08,148.04,4.64094911]
[1751723064495,10.54306718,148.07,148.04,4.64094911]
[1751723064794,4.683,148.08,148.04,4.64094911]
[1751723064994,10.55331389,148.07,148.04,4.64094911]
[1751723065191,4.683,148.08,148.04,4.64094911]
[1751723065395,10.55060939,148.07,148.04,4.64094911]
[1751723065596,4.683,148.08,148.04,4.64094911]
[1751723065898,10.56198519,148.07,148.04,4.64094911]
[1751723066098,4.683,148.08,148.04,4.64094911]
[1751723066396,10.5610118,148.07,148.04,4.64094911]
[1751723066596,4.683,148.08,148.04,4.64094911]
[1751723066797,10.56059014,148.07,148.04,4.64094911]
[1751723066996,4.683,148.08,148.04,4.64094911]
[1751723067195,10.56059014,148.07,148.04,4.64094911]
[1751723067397,4.683,148.08,148.04,4.64094911]
[1751723067599,10.55869152,148.07,148.04,4.64094911]
[1751723067798,4.683,148.08,148.04,4.64094911]
[1751723068001,10.55869152,148.07,148.04,4.64094911]
[1751723068199,4.683,148.08,148.04,4.64094911]
[1751723068400,10.55746528,148.07,148.04,4.64094911]
[1751723068601,4.683,148.08,148.04,4.64094911]
[1751723068905,10.55746528,148.07,148.04,4.64094911]
[1751723069197,4.683,148.08,148.04,4.64094911]
[1751723069398,4.82050789,148.07,148.04,4.64094911]
[1751723069599,4.683,148.08,148.04,4.64094911]
[1751723069900,4.82050789,148.07,148.04,4.64094911]
[1751723070089,4.683,148.08,148.04,4.64094911]
[1751723070293,4.8206364,148.07,148.04,4.64094911]
[1751723070491,6.88449628,148.1,148.04,4.64094911]
[1751723070691,10.56008727,148.09,148.04,4.64094911]
[1751723070892,10.56008727,148.08,148.04,4.64094911]
[1751723071098,4.82017357,148.07,148.04,4.64094911]
[1751723071297,6.88951366,148.1,148.04,4.64094911]
[1751723071494,10.55928036,148.09,148.04,4.64094911]
[1751723071700,10.55928036,148.08,148.04,4.64094911]
[1751723071900,4.81976646,148.07,148.04,4.64094911]
[1751723072099,6.87492364,148.1,148.04,4.64094911]
[1751723072399,10.5562811,148.09,148.04,4.64094911]
[1751723072599,10.5562811,148.08,148.04,4.64094911]
[1751723072799,4.81873814,148.07,148.04,4.64094911]
[1751723073004,6.87482249,148.1,148.04,4.64094911]
[1751723073201,10.55626149,148.09,148.04,4.64094911]
[1751723073398,10.55622865,148.08,148.04,4.64094911]
[1751723073603,10.55622655,148.07,148.02,4.64094911]
[1751723073805,6.87486066,148.09,148.02,4.64094911]
[1751723074009,10.56218102,148.08,148.02,4.64094911]
[1751723074206,10.56218102,148.07,148.02,4.64094911]
[1751723074403,6.87528359,148.09,148.02,4.64094911]
[1751723074701,5.74383283,148.08,148.02,4.64094911]
[1751723074908,10.5625233,148.07,148.02,4.64094911]
[1751723075110,6.87508475,148.09,148.02,4.64094911]
[1751723075310,10.56275645,148.08,148.02,4.64094911]
[1751723075602,10.56275645,148.07,148.02,4.64094911]
[1751723075806,6.87544487,148.09,148.02,4.64094911]
[1751723076001,4.64094911,148.1,148.02,4.64094911]
[1751723076002,10.56306811,148.08,148.02,4.64094911]
[1751723076203,10.56306811,148.07,148.02,4.64094911]
[1751723076403,2.19347598,148.09,148.02,4.64094911]
[1751723076605,10.56359902,148.08,148.02,4.64094911]
[1751723076797,10.56359902,148.07,148.02,4.64094911]
[1751723076999,2.19347598,148.09,148.02,4.64094911]
[1751723077199,10.56359903,148.08,148.02,4.64094911]
[1751723077404,10.56359903,148.07,148.02,4.64094911]
[1751723077700,2.19367757,148.09,148.02,4.64094911]
[1751723077905,10.56455742,148.08,148.02,4.64094911]
[1751723078105,10.56455742,148.07,148.02,4.64094911]
[1751723078306,2.19207751,148.09,148.02,4.64094911]
[1751723078508,10.56501456,148.08,148.02,4.64094911]
[1751723078807,10.56501456,148.07,148.02,4.64094911]
[1751723079009,4.6524,148.07,148.02,4.64094911]
[1751723082412,4.81133276,148.06,148.02,4.64094911]
[1751723082714,4.6524,148.07,148.02,11.39494911]
[1751723082917,4.81133276,148.06,148.02,11.39494911]
[1751723083109,6.7531,148.05,148.02,11.39494911]
[1751723084307,6.7531,148.05,148.04,4.64094911]
[1751723084512,6.7526,148.06,148.04,4.64094911]
[1751723085814,6.7526,148.06,148.05,2.97019429]
[1751723086114,11.56561772,148.06,148.05,2.97019429]
[1751723088217,17.31432201,148.06,148.05,2.97019429]
[1751723095728,6.7531,148.05,148.04,2.97019429]
[1751723096018,6.7531,148.05,148.03,2.97019429]
[1751723096019,10.56172201,148.05,148.03,2.97019429]
[1751723096226,11.56631772,148.04,148.03,2.97019429]
[1751723098525,4.81301772,148.04,148.03,2.97019429]
[1751723099524,4.81301772,148.04,148.03,9.72399429]
[1751723100527,4.81301772,148.04,148.03,2.97019429]
[1751723102128,10.57316753,148.04,148.03,2.97019429]
[1751723108838,6.7526,148.06,148.03,2.97019429]
[1751723109042,6.7526,148.06,148.05,2.97019429]
[1751723110942,6.7522,148.07,148.05,2.97019429]
[1751723111143,6.7522,148.07,148.06,2.97019429]
[1751723111341,13.66950147,148.07,148.06,2.97019429]
[1751723111542,13.66950147,148.07,148.04,6.7531]
[1751723111747,6.7522,148.07,148.06,2.97019429]
[1751723112047,13.66952798,148.07,148.06,2.97019429]
[1751723119751,6.91732798,148.07,148.02,6.754]
[1751723120050,6.92506579,148.06,148.03,2.97019429]
[1751723120356,11.48076326,148.05,148.03,2.97019429]
[1751723120650,6.7533,148.05,148.03,2.97019429]
[1751723120847,10.50866278,148.04,148.03,2.97019429]
[1751723124353,17.26196278,148.04,148.03,2.97019429]
[1751723125154,17.26196278,148.04,148.01,46.04]
[1751723125343,6.7533,148.04,148.03,2.97019429]
[1751723125545,17.23490131,148.04,148.03,2.97019429]
[1751723126550,10.48160131,148.04,148.01,46.04]
[1751723126758,13.45063343,148.03,147.99,2.97019429]
[1751723126952,10.48058465,148.02,147.98,2.97019429]